fUSD/lending_fUSD_20240612
["ID","MTS","AMOUNT","RATE_DAILY","PERIOD"]
[329211307,1718181036796,-500.0,0.00019178,2]
[329211308,1718181036807,-582.8072375,0.00019178,2]
[329211309,1718181036842,-500.0,0.00019178,2]
[329211310,1718181036858,-500.0,0.00019178,2]
[329211311,1718181036869,-503.56020569,0.00019178,2]
[329211312,1718181036891,-500.0,0.00019178,2]
[329211313,1718181036908,-500.0,0.00019178,2]
[329211314,1718181036919,-500.0,0.00019178,2]
[329211315,1718181036931,-500.0,0.00019178,2]
[329211316,1718181036942,-500.0,0.00019178,2]
[329211317,1718181036953,-500.0,0.00019178,2]
[329211318,1718181036965,-500.0,0.00019178,2]
[329211319,1718181036976,-500.0,0.00019178,2]
[329211320,1718181036991,-500.0,0.00019178,2]
[329211321,1718181037006,-500.0,0.00019178,2]
[329211322,1718181037022,-613.68155577,0.00019178,2]
[329211323,1718181037038,-500.0,0.00019178,2]
[329211324,1718181037052,-500.0,0.00019178,2]
[329211325,1718181037064,-541.62,0.00019178,2]
[329211326,1718181037087,-529.26785634,0.00019178,2]
[329211327,1718181037102,-500.0,0.00019178,2]
[329211328,1718181037118,-545.86021363,0.00019178,2]
[329211329,1718181037133,-537.58079511,0.00019178,2]
[329211330,1718181037149,-500.0,0.00019178,2]
[329211331,1718181037161,-500.0,0.00019178,2]
[329211332,1718181037189,-1054.1,0.00019178,2]
[329211333,1718181037214,-500.0,0.00019178,2]
[329211334,1718181037236,-816.28,0.00019178,2]
[329211335,1718181037247,-1633.39,0.00019178,2]
[329211336,1718181037261,-500.0,0.00019178,2]
[329211337,1718181037299,-500.0,0.00019178,2]
[329211338,1718181037311,-500.0,0.00019178,2]
[329211339,1718181037327,-500.0,0.00019178,2]
[329211340,1718181037337,-616.78,0.00019178,2]
[329211341,1718181037350,-500.0,0.00019178,2]
[329211342,1718181037360,-500.0,0.00019178,2]
[329211343,1718181037372,-500.0,0.00019178,2]
[329211344,1718181037386,-500.0,0.00019178,2]
[329211345,1718181037417,-757.75,0.00019178,2]
[329211346,1718181037435,-535.96,0.00019178,2]
[329211347,1718181037447,-500.0,0.00019178,2]
[329211348,1718181037462,-595.8,0.00019178,2]
[329211349,1718181037475,-500.0,0.00019178,2]
[329211350,1718181037496,-500.0,0.00019178,2]
[329211351,1718181037516,-500.0,0.00019178,2]
[329211352,1718181037529,-355.75015902,0.00019178,2]
[329211353,1718181037548,-144.24984098,0.00019178,2]
[329211354,1718181037572,-500.0,0.00019178,2]
[329211355,1718181037594,-500.0,0.00019178,2]
[329211356,1718181037610,-500.0,0.00019178,2]
[329211357,1718181037621,-500.0,0.00019178,2]
[329211358,1718181037635,-500.0,0.00019178,2]
[329211359,1718181037658,-500.0,0.00019178,2]
[329211360,1718181037671,-1260.86,0.00019178,2]
[329211361,1718181037684,-500.0,0.00019178,2]
[329211362,1718181037698,-500.0,0.00019178,2]
[329211363,1718181037734,-1031.42,0.00019178,2]
[329211364,1718181037751,-520.16,0.00019178,2]
[329211365,1718181037763,-299.66617382,0.00019178,2]
[329211366,1718181037999,-866.75382618,0.00019178,2]
[329211367,1718181038011,-754.57,0.00019178,2]
[329211368,1718181038023,-290.58573665,0.00019178,2]
[329211369,1718181038039,-23.32270026,0.00019178,2]
[329211370,1718181038062,-600.29449188,0.00019178,2]
[329211371,1718181038080,-500.0,0.00019178,2]
[329211372,1718181038093,-693.56,0.00019178,2]
[329211373,1718181038108,-1880.42668704,0.00019178,2]
[329211375,1718181040879,-570.16605333,0.00017481,2]
[329211377,1718181042071,-957.10894667,0.00017481,2]
[329211378,1718181042089,-901.40331296,0.00019178,2]
[329211379,1718181042105,-108.8151649,0.00019178,2]
[329211380,1718181042206,-513.7948351,0.00019178,2]
[329211381,1718181042217,-12.6151649,0.00019178,2]
[329211382,1718181042330,-769.5048351,0.00019178,2]
[329211383,1718181042341,-500.0,0.00019178,2]
[329211384,1718181042357,-2499.49,0.00019178,2]
[329211385,1718181042368,-500.0,0.00019178,2]
[329211386,1718181042392,-536.78,0.00019178,2]
[329211387,1718181042408,-199.30300333,0.00019178,2]
[329211388,1718181042431,-500.0,0.00019178,2]
[329211389,1718181042455,-500.0,0.00019178,2]
[329211390,1718181042473,-500.0,0.00019178,2]
[329211391,1718181042495,-561.2,0.00019178,2]
[329211392,1718181042524,-500.0,0.00019178,2]
[329211393,1718181042539,-650.74,0.00019178,2]
[329211394,1718181042568,-509.49963356,0.00019178,2]
[329211395,1718181042588,-500.0,0.00019178,2]
[329211396,1718181042606,-2004.84,0.00019178,2]
[329211397,1718181042632,-2792.51,0.00019178,2]
[329211398,1718181042664,-500.0,0.00019178,2]
[329211399,1718181042682,-500.0,0.00019178,2]
[329211400,1718181042694,-500.0,0.00019178,2]
[329211401,1718181042723,-500.0,0.00019178,2]
[329211402,1718181042736,-500.0,0.00019178,2]
[329211403,1718181042749,-356.55152254,0.00019178,2]
[329211404,1718181042761,-367.06694509,0.00019178,2]
[329211405,1718181042773,-347.01192578,0.00019178,2]
[329211406,1718181042785,-625.77511416,0.00019197,2]
[329211407,1718181042810,-500.0,0.00019214,2]
[329211408,1718181042843,-500.0,0.00019214,2]
[329211409,1718181042864,-500.0,0.00019214,2]
[329211410,1718181042887,-500.0,0.00019214,2]
[329211411,1718181042900,-500.0,0.00019214,2]
[329211412,1718181042914,-500.0,0.00019214,2]
[329211413,1718181042933,-585.77,0.00019214,2]
[329211414,1718181042957,-500.0,0.00019214,2]
[329211415,1718181042975,-500.0,0.00019214,2]
[329211416,1718181042996,-500.0,0.00019214,2]
[329211417,1718181043015,-500.0,0.00019214,2]
[329211418,1718181043036,-500.0,0.00019214,2]
[329211419,1718181043049,-500.0,0.00019214,2]
[329211420,1718181043063,-500.0,0.00019214,2]
[329211421,1718181043088,-150.0,0.00019214,2]
[329211422,1718181043104,-500.0,0.00019214,2]
[329211423,1718181043124,-500.0,0.00019214,2]
[329211424,1718181043146,-500.0,0.00019214,2]
[329211425,1718181043160,-500.0,0.00019214,2]
[329211426,1718181043180,-500.0,0.00019214,2]
[329211427,1718181043194,-500.0,0.00019214,2]
[329211428,1718181043207,-500.0,0.00019214,2]
[329211429,1718181043227,-500.0,0.00019214,2]
[329211430,1718181043241,-500.0,0.00019214,2]
[329211431,1718181043259,-699.27,0.00019214,2]
[329211433,1718181043305,-185.51854206,0.00019214,2]
[329211436,1718181043327,-500.0,0.00019214,2]
[329211438,1718181043355,-500.0,0.00019214,2]
[329211440,1718181043381,-500.0,0.00019214,2]
[329211442,1718181043403,-500.0,0.00019214,2]
[329211444,1718181043431,-500.0,0.00019214,2]
[329211446,1718181043446,-500.0,0.00019214,2]
[329211448,1718181043467,-500.0,0.00019214,2]
[329211450,1718181043481,-500.0,0.00019214,2]
[329211452,1718181043495,-500.0,0.00019214,2]
[329211455,1718181043511,-500.0,0.00019214,2]
[329211460,1718181043531,-500.0,0.00019214,2]
[329211465,1718181043558,-500.0,0.00019214,2]
[329211468,1718181043569,-672.86,0.00019214,2]
[329211470,1718181043579,-500.0,0.00019214,2]
[329211473,1718181043591,-500.0,0.00019214,2]
[329211476,1718181043603,-500.0,0.00019214,2]
[329211479,1718181043615,-500.0,0.00019214,2]
[329211480,1718181043625,-500.0,0.00019214,2]
[329211483,1718181043638,-500.0,0.00019214,2]
[329211486,1718181043650,-500.0,0.00019214,2]
[329211489,1718181043662,-500.0,0.00019214,2]
[329211493,1718181043678,-500.0,0.00019214,2]
[329211496,1718181043696,-3179.83,0.00019214,2]
[329211499,1718181043714,-500.0,0.00019214,2]
[329211502,1718181043731,-500.0,0.00019214,2]
[329211505,1718181043745,-500.0,0.00019214,2]
[329211507,1718181043758,-500.0,0.00019214,2]
[329211510,1718181043770,-500.0,0.00019214,2]
[329211512,1718181043785,-500.0,0.00019214,2]
[329211518,1718181043820,-778.28,0.00019214,2]
[329211521,1718181043836,-500.0,0.00019214,2]
[329211525,1718181043863,-500.0,0.00019214,2]
[329211527,1718181043877,-500.0,0.00019214,2]
[329211530,1718181043892,-542.36,0.00019214,2]
[329211532,1718181043906,-6974.09,0.00019214,2]
[329211534,1718181043918,-693.3,0.00019214,2]
[329211535,1718181043930,-500.0,0.00019214,2]
[329211537,1718181043945,-500.0,0.00019214,2]
[329211539,1718181043957,-500.0,0.00019214,2]
[329211541,1718181043970,-1110.22,0.00019214,2]
[329211543,1718181043992,-500.0,0.00019214,2]
[329211546,1718181044008,-500.0,0.00019214,2]
[329211547,1718181044022,-500.0,0.00019214,2]
[329211549,1718181044035,-978.35,0.00019214,2]
[329211551,1718181044050,-732.19,0.00019214,2]
[329211553,1718181044064,-738.83,0.00019214,2]
[329211555,1718181044080,-500.0,0.00019214,2]
[329211557,1718181044103,-500.0,0.00019214,2]
[329211559,1718181044124,-688.5,0.00019214,2]
[329211560,1718181044138,-1340.56,0.00019214,2]
[329211562,1718181044154,-633.29,0.00019214,2]
[329211563,1718181044176,-1581.07,0.00019214,2]
[329211564,1718181044188,-500.0,0.00019214,2]
[329211565,1718181044201,-1393.86,0.00019214,2]
[329211566,1718181044213,-543.83,0.00019214,2]
[329211567,1718181044228,-500.0,0.00019214,2]
[329211568,1718181044244,-874.95,0.00019214,2]
[329211569,1718181044258,-915.65,0.00019214,2]
[329211570,1718181044271,-900.72,0.00019214,2]
[329211571,1718181044314,-500.0,0.00019214,2]
[329211573,1718181044326,-500.0,0.00019214,2]
[329211574,1718181044342,-500.0,0.00019214,2]
[329211576,1718181044355,-500.0,0.00019214,2]
[329211578,1718181044368,-500.0,0.00019214,2]
[329211580,1718181044385,-500.0,0.00019214,2]
[329211582,1718181044397,-500.0,0.00019214,2]
[329211584,1718181044422,-500.0,0.00019214,2]
[329211586,1718181044442,-756.28,0.00019214,2]
[329211588,1718181044455,-500.0,0.00019214,2]
[329211590,1718181044472,-500.0,0.00019214,2]
[329211593,1718181044495,-500.0,0.00019214,2]
[329211595,1718181044512,-500.0,0.00019214,2]
[329211597,1718181044523,-500.0,0.00019214,2]
[329211599,1718181044539,-500.0,0.00019214,2]
[329211601,1718181044553,-500.0,0.00019214,2]
[329211603,1718181044567,-500.0,0.00019214,2]
[329211605,1718181044587,-500.0,0.00019214,2]
[329211607,1718181044600,-1122.69,0.00019214,2]
[329211609,1718181044615,-500.0,0.00019214,2]
[329211611,1718181044628,-616.28,0.00019214,2]
[329211613,1718181044654,-1718.01,0.00019214,2]
[329211615,1718181044668,-500.0,0.00019214,2]
[329211619,1718181044685,-602.22,0.00019214,2]
[329211621,1718181044710,-500.0,0.00019214,2]
[329211623,1718181044744,-500.0,0.00019214,2]
[329211625,1718181044757,-500.0,0.00019214,2]
[329211627,1718181044770,-500.0,0.00019214,2]
[329211629,1718181044782,-500.0,0.00019214,2]
[329211631,1718181044794,-500.0,0.00019214,2]
[329211633,1718181044811,-845.97,0.00019214,2]
[329211636,1718181044828,-560.78,0.00019214,2]
[329211638,1718181044849,-500.0,0.00019214,2]
[329211640,1718181044861,-500.0,0.00019214,2]
[329211642,1718181044873,-500.0,0.00019214,2]
[329211643,1718181044885,-2002.85,0.00019214,2]
[329211645,1718181044896,-500.0,0.00019214,2]
[329211647,1718181044907,-500.0,0.00019214,2]
[329211649,1718181044920,-500.0,0.00019214,2]
[329211651,1718181044931,-500.0,0.00019214,2]
[329211653,1718181044942,-520.57,0.00019214,2]
[329211655,1718181044955,-837.97,0.00019214,2]
[329211656,1718181044967,-500.0,0.00019214,2]
[329211658,1718181044978,-1067.35,0.00019214,2]
[329211660,1718181044989,-1588.85,0.00019214,2]
[329211662,1718181045002,-500.0,0.00019214,2]
[329211665,1718181045034,-500.0,0.00019214,2]
[329211667,1718181045046,-1058.24,0.00019214,2]
[329211669,1718181045065,-500.0,0.00019214,2]
[329211671,1718181045088,-3311.4225991,0.00019214,2]
[329211674,1718181045129,-823.0374009,0.00019214,2]
[329211676,1718181045141,-1442.76837893,0.00019214,2]
[329211677,1718181045156,-25.53162107,0.00019214,2]
[329211679,1718181045168,-1395.74580093,0.00019214,2]
[329211695,1718181045351,-450.96419907,0.00019214,2]
[329211697,1718181045364,-621.55,0.00019214,2]
[329211699,1718181045376,-439.09079423,0.00019214,2]
[329211702,1718181045398,-652.85920577,0.00019214,2]
[329211704,1718181045409,-1798.26200994,0.00019214,2]
[329211709,1718181045455,-266.25901707,0.00019214,2]
[329211728,1718181045661,-1667.02425738,0.00019214,2]
[329211731,1718181045675,-1303.68471561,0.00019214,2]
[329211733,1718181045686,-235.0761212,0.00019214,2]
[329211735,1718181045700,-264.9238788,0.00019214,2]
[329211737,1718181045714,-489.4001705,0.00019214,2]
[329211743,1718181045762,-57.3198295,0.00019214,2]
[329211745,1718181045774,-500.0,0.00019214,2]
[329211747,1718181045785,-500.0,0.00019214,2]
[329211749,1718181045800,-810.65,0.00019214,2]
[329211751,1718181045812,-500.0,0.00019214,2]
[329211753,1718181045823,-573.71,0.00019214,2]
[329211755,1718181045835,-353.69817607,0.00019214,2]
[329211757,1718181045846,-370.12708786,0.00019214,2]
[329211759,1718181045858,-158.62589479,0.00019214,2]
[329211761,1718181045869,-5853.27870681,0.00019215,2]
[329211763,1718181045883,-861.41700096,0.00019215,2]
[329211766,1718181045905,-618.99202773,0.00019215,2]
[329211768,1718181045919,-42.5539645,0.00019215,2]
[329211771,1718181045931,-4704.18968813,0.00019215,2]
[329211801,1718181046245,-518.0186057,0.00019215,2]
[329211819,1718181046484,-1458.01668134,0.00019215,2]
[329211821,1718181046498,-3442.81039702,0.00019215,2]
[329211844,1718181046657,-1147.61547032,0.00019215,2]
[329211847,1718181046675,-285.43780332,0.00019215,2]
[329211942,1718181047445,-3620.859,0.00018512,2]
[329211943,1718181047455,-714.21,0.00018522,2]
[329211945,1718181047467,-2786.431,0.00019215,2]
[329211959,1718181047670,-922.26269289,0.00019215,2]
[329211980,1718181048015,-95790.70911264,0.00019215,2]
[329211987,1718181048082,-500.0,0.00019214,2]
[329211989,1718181048095,-1190.08222389,0.00019215,2]
[329212062,1718181246641,2623.65924746,0.000118,2]
[329212063,1718181285585,24669.67614398,0.000118,2]
[329212064,1718181301554,15740.32806424,0.000118,2]
[329212073,1718181570145,-462.26350656,0.0001298,2]
[329212074,1718181570174,-29245.73649344,0.00014,2]
[329212075,1718181588943,718.86146872,0.000118,2]
[329212076,1718181597238,217.76570149,0.000118,2]
[329212077,1718181604848,155.17777497,0.000118,2]
[329212078,1718181692843,500.0,0.000118,2]
[329212079,1718181693462,500.0,0.000118,2]
[329212080,1718181693910,500.0,0.000118,2]
[329212081,1718181694350,500.0,0.000118,2]
[329212082,1718181694735,500.0,0.000118,2]
[329212083,1718181695084,500.0,0.000118,2]
[329212084,1718181695439,500.0,0.000118,2]
[329212085,1718181695777,806.0,0.000118,2]
[329212089,1718181866551,1075.84932894,0.000118,2]
[329212092,1718181919814,906.12864841,0.000118,2]
[329212095,1718182032184,-942.63255818,0.00012598,2]
[329212096,1718182032212,-424.35038744,0.00012599,2]
[329212097,1718182032252,-701.59,0.00013566,2]
[329212098,1718182032284,-200.59021487,0.0001393,2]
[329212099,1718182032335,-150.0,0.00013973,2]
[329212100,1718182032372,-152.9,0.0001399,2]
[329212101,1718182032414,-152.9,0.0001399,2]
[329212102,1718182032463,-206.03170677,0.00013998,2]
[329212103,1718182032511,-114.97350883,0.00013998,2]
[329212117,1718182232953,-708.21231026,0.00012598,2]
[329212118,1718182232964,-152.9,0.0001399,2]
[329212119,1718182232975,-152.9,0.0001399,2]
[329212120,1718182232986,-1134.37435853,0.00013998,2]
[329212121,1718182232997,-150.0,0.00013998,2]
[329212122,1718182233008,-603.59543449,0.00013998,2]
[329212123,1718182233018,-1625.30453105,0.00013999,2]
[329212124,1718182233029,-1053.10914453,0.00013999,2]
[329212125,1718182233040,-669.96579635,0.00013999,2]
[329212126,1718182233051,-2138.20030163,0.00013999,2]
[329212127,1718182233061,-155.0,0.00013999,2]
[329212128,1718182233071,-506.80366576,0.00013999,2]
[329212129,1718182233082,-3086.564671,0.00014,2]
[329212130,1718182233206,-442.27075883,0.00014,2]
[329212131,1718182233854,-1362.34079607,0.00014,2]
[329212132,1718182233887,-368.8413894,0.00014,2]
[329212134,1718182233987,-1723.49402903,0.00014,2]
[329212197,1718182238916,-3199.2809199,0.00014,2]
[329212198,1718182239355,-0.303876,0.00014,2]
[329212199,1718182239541,-57724.55704624,0.00014,2]
[329212200,1718182239554,-24787.06018276,0.00014,2]
[329212360,1718182241510,-1818.9,0.00014,2]
[329212371,1718182241616,-362.17346332,0.00014,2]
[329212382,1718182241719,-3466.91092241,0.00014,2]
[329212388,1718182241799,-320.10297877,0.00014,2]
[329212429,1718182242226,-356.19588052,0.00014,2]
[329212441,1718182242338,-552.33090042,0.00014,2]
[329212443,1718182242353,-29075.78480416,0.00014,2]
[329212579,1718182244075,-23471.61806955,0.00014,2]
[329212580,1718182244207,-2224.94605928,0.00014,2]
[329212581,1718182247094,-960.80812001,0.00014,2]
[329212582,1718182247747,-859.9853308,0.00014,2]
[329212593,1718182309693,224.0,0.00028,90]
[329212597,1718182410040,7793.0,0.00028,90]
[329212727,1718183254155,-666.51,0.00012612,2]
[329212728,1718183254181,-1796.59972558,0.00012973,2]
[329212729,1718183254205,-5140.79363786,0.00012974,2]
[329212735,1718183438513,-453.5756057,0.00012973,2]
[329212736,1718183438527,-380.37462389,0.00012974,2]
[329212737,1718183438538,-1000.0,0.00013453,2]
[329212738,1718183438549,-200.0,0.00013484,2]
[329212739,1718183438559,-166.58,0.00013554,2]
[329212740,1718183438570,-250.0,0.00013579,2]
[329212741,1718183438581,-425.22507668,0.00013799,2]
[329212742,1718183438592,-1200.0,0.000138,5]
[329212743,1718183438603,-414.21555173,0.00013827,2]
[329212744,1718183438614,-150.0,0.00013836,2]
[329212745,1718183438624,-150.0,0.00013859,2]
[329212746,1718183438635,-4972.95997967,0.0001386,2]
[329212748,1718183440321,-573.25215234,0.0001386,2]
[329212749,1718183440335,-3475.13309198,0.0001386,2]
[329212767,1718183440574,-30048.69780419,0.0001386,2]
[329212769,1718183440586,-1000.0,0.0001386,2]
[329212770,1718183440597,-9344.19439903,0.000139,2]
[329212772,1718183440607,-174.83982574,0.000139,2]
[329212773,1718183440618,-654.5863,0.000139,2]
[329212775,1718183440630,-208.66770741,0.000139,2]
[329212776,1718183440643,-189.27721259,0.000139,2]
[329212777,1718183440654,-3510.5234,0.000139,2]
[329212778,1718183440665,-2400.0,0.000139,5]
[329212779,1718183440677,-2500.0,0.000139,2]
[329212780,1718183440688,-374.8776,0.000139,2]
[329212781,1718183440699,-324.93789622,0.000139,2]
[329212782,1718183440710,-1000.0,0.000139,2]
[329212783,1718183440721,-383.08543461,0.00013953,2]
[329212784,1718183440732,-152.95,0.0001399,2]
[329212785,1718183440745,-518.95648126,0.00013998,2]
[329212786,1718183440756,-3067.01080739,0.00013998,2]
[329212787,1718183440768,-476.67782634,0.00013999,2]
[329212788,1718183440779,-839625.33119851,0.00014,2]
[329212789,1718183440873,-1698.02186945,0.00014,2]
[329212790,1718183440886,-500.0,0.00014,2]
[329212791,1718183440908,-492.12591951,0.00014,2]
[329212792,1718183440922,-931.92849026,0.00014,2]
[329212799,1718183441030,-597.22413908,0.00014,2]
[329212801,1718183441046,-1619.20385,0.00014,2]
[329212835,1718183441429,-445.8647878,0.00014,2]
[329212837,1718183441442,-18808.75,0.00014,2]
[329212852,1718183441596,-2025.59405055,0.00014,2]
[329212853,1718183441608,-2796.90567683,0.00014,2]
[329212854,1718183441649,-2332.78903089,0.00014,2]
[329212855,1718183441661,-716.59388063,0.00014,2]
[329212856,1718183441673,-2657.0803135,0.00014,2]
[329212857,1718183441685,-437.07018855,0.00014,2]
[329212858,1718183441698,-461.75544879,0.00014,2]
[329212859,1718183441728,-32666.80254855,0.00014,2]
[329212860,1718183441739,-127084.69379484,0.00014,2]
[329212868,1718183441883,-308.94361421,0.00014,2]
[329212915,1718183442340,-847.9789217,0.00014,2]
[329213028,1718183443468,-9344.27558756,0.00014,2]
[329213035,1718183443529,-9176.86964742,0.00014,2]
[329213042,1718183443597,-1300.56922195,0.00014,2]
[329213044,1718183443610,-1400.01077471,0.00014,2]
[329213047,1718183443623,-486.91192548,0.00014,2]
[329213083,1718183444000,-2034.2894002,0.00014,2]
[329213091,1718183444070,-7857.68880029,0.00014,2]
[329213098,1718183444136,-369.04818863,0.00014,2]
[329213103,1718183444207,-34039.38529666,0.00014,2]
[329213110,1718183444262,-199628.87324261,0.00014,2]
[329213112,1718183444272,-161.91560937,0.00014,2]
[329213113,1718183444283,-6068.925,0.00014,2]
[329213115,1718183444294,-499.99,0.00014,2]
[329213118,1718183444304,-463.99,0.00014052,2]
[329213119,1718183444315,-27924.17,0.00014052,2]
[329213122,1718183444325,-250.0,0.00014329,2]
[329213124,1718183444336,-200.0,0.00014364,2]
[329213125,1718183444346,-664.25,0.00014364,2]
[329213127,1718183444357,-1706.88,0.00014384,2]
[329213129,1718183444367,-23900.0,0.00014425,2]
[329213131,1718183444378,-169.23,0.00014695,2]
[329213133,1718183444388,-553.82,0.000148,2]
[329213135,1718183444398,-666.51,0.00014876,2]
[329213137,1718183444409,-3600.0,0.000149,5]
[329213139,1718183444420,-189.27721258,0.00014913,2]
[329213141,1718183444430,-152.95,0.0001499,2]
[329213143,1718183444441,-2487.18140371,0.00015,2]
[329213145,1718183444452,-299873.69283799,0.00015,2]
[329213148,1718183444465,-234621.50301145,0.00015,2]
[329213261,1718183450469,-159980.63038863,0.00015,2]
[329213262,1718183450479,-1000.0,0.00015135,2]
[329213263,1718183450489,-9344.19439898,0.00015245,2]
[329213264,1718183450501,-170.1,0.00015381,2]
[329213265,1718183450511,-1000.0,0.0001636,2]
[329213266,1718183450522,-9344.19439898,0.00016591,2]
[329213267,1718183450532,-897.6660486,0.00016645,2]
[329213268,1718183450542,-1000.0,0.00016817,2]
[329213269,1718183450553,-1706.88,0.00017124,2]
[329213270,1718183450564,-666.51,0.0001714,2]
[329213271,1718183450575,-165.24,0.00017182,2]
[329213272,1718183450587,-165.24,0.00017225,2]
[329213273,1718183450597,-165.24,0.00017268,2]
[329213274,1718183450607,-9344.19439898,0.00017936,2]
[329213275,1718183450618,-155.123,0.00018002,2]
[329213276,1718183450628,-3638.232,0.00018134,2]
[329213277,1718183450639,-3715.731,0.000182,2]
[329213278,1718183450649,-3699.908,0.000182,2]
[329213279,1718183450660,-813.48792728,0.00018253,2]
[329213280,1718183450670,-1000.0,0.00018498,2]
[329213281,1718183450680,-3604.395,0.00018705,2]
[329213282,1718183450691,-324.93789622,0.00018833,2]
[329213283,1718183450703,-1000.0,0.0001886,2]
[329213284,1718183450714,-4800.0,0.000189,6]
[329213285,1718183450726,-3665.021,0.00018903,2]
[329213286,1718183450737,-152.95,0.00019168,2]
[329213287,1718183450749,-444.71749858,0.00019178,2]
[329213288,1718183450760,-500.0,0.00019178,2]
[329213289,1718183450771,-500.0,0.00019178,2]
[329213290,1718183450781,-500.0,0.00019178,2]
[329213291,1718183450792,-500.0,0.00019178,2]
[329213292,1718183450802,-500.0,0.00019178,2]
[329213293,1718183450812,-500.0,0.00019178,2]
[329213294,1718183450823,-500.0,0.00019178,2]
[329213295,1718183450834,-500.0,0.00019178,2]
[329213296,1718183450845,-500.0,0.00019178,2]
[329213297,1718183450855,-500.0,0.00019178,2]
[329213298,1718183450866,-500.0,0.00019178,2]
[329213299,1718183450876,-500.0,0.00019178,2]
[329213300,1718183450886,-420.83967052,0.00019178,2]
[329213301,1718183450896,-500.0,0.00019178,2]
[329213302,1718183450906,-501.88126851,0.00019178,2]
[329213303,1718183450917,-500.0,0.00019178,2]
[329213304,1718183450927,-500.0,0.00019178,2]
[329213305,1718183450937,-500.0,0.00019178,2]
[329213306,1718183450949,-470.93208447,0.00019178,2]
[329213307,1718183450960,-500.0,0.00019178,2]
[329213308,1718183450970,-500.0,0.00019178,2]
[329213309,1718183450981,-214.83612214,0.00019178,2]
[329213310,1718183450992,-683.26,0.00019178,2]
[329213311,1718183451002,-500.0,0.00019178,2]
[329213312,1718183451013,-500.0,0.00019178,2]
[329213313,1718183451024,-500.0,0.00019178,2]
[329213314,1718183451034,-500.0,0.00019178,2]
[329213315,1718183451045,-500.0,0.00019178,2]
[329213316,1718183451055,-500.0,0.00019178,2]
[329213317,1718183451066,-466.99897378,0.00019178,2]
[329213318,1718183451076,-500.0,0.00019178,2]
[329213319,1718183451086,-500.0,0.00019178,2]
[329213320,1718183451096,-500.0,0.00019178,2]
[329213321,1718183451106,-561.36,0.00019178,2]
[329213322,1718183451117,-500.0,0.00019178,2]
[329213323,1718183451132,-500.0,0.00019178,2]
[329213324,1718183451142,-500.0,0.00019178,2]
[329213325,1718183451153,-500.0,0.00019178,2]
[329213326,1718183451164,-500.0,0.00019178,2]
[329213327,1718183451179,-500.0,0.00019178,2]
[329213328,1718183451211,-540.04,0.00019178,2]
[329213329,1718183451222,-500.0,0.00019178,2]
[329213330,1718183451234,-500.0,0.00019178,2]
[329213331,1718183451244,-500.0,0.00019178,2]
[329213332,1718183451255,-500.0,0.00019178,2]
[329213333,1718183451265,-500.0,0.00019178,2]
[329213334,1718183451275,-500.0,0.00019178,2]
[329213335,1718183451285,-500.0,0.00019178,2]
[329213336,1718183451295,-500.0,0.00019178,2]
[329213337,1718183451306,-500.0,0.00019178,2]
[329213338,1718183451316,-500.0,0.00019178,2]
[329213339,1718183451328,-500.0,0.00019178,2]
[329213340,1718183451338,-561.88,0.00019178,2]
[329213341,1718183451348,-500.0,0.00019178,2]